[Event "-chT Youth Countries 2019"]
[Site "Wuerzburg"]
[Date "2019.10.03"]
[Round "3.7"]
[White "Sauer, Tim"]
[Black "Schnabel, Luise"]
[Result "1/2-1/2"]
[ECO "A16"]
[WhiteElo "1597"]
[BlackElo "1900"]
[Annotator "NA"]
[PlyCount "298"]
[EventDate "2019.10.02"]
[EventType "team-tourn"]
[EventRounds "7"]
[EventCountry "GER"]
[SourceTitle "playchess.com"]
[Source "ChessBase"]
[SourceQuality "1"]
[WhiteTeam "Niedersachsen"]
[BlackTeam "Berlin"]
[TimeControl "40/5400+30:1800+30"]

1. c4 {[%emt 0:00:00]} Nf6 {[%emt 0:00:00]} 2. Nc3 {[%emt 0:00:00]} g6 {[%emt 0:00:00]} 3. g3 {[%emt 0:00:00]} Bg7 {[%emt 0:00:10]} 4. Bg2 {[%emt 0:00:00]} O-O {[%emt 0:00:15]} 5. e3 {[%emt 0:00:00]} d6 {[%emt 0:01:04]} 6. Nge2 {[%emt 0:00:00]} e5 {[%emt 0:01:46]} 7. O-O {[%emt 0:01:09]} Nc6 {[%emt 0:05:45]} 8. d3 {[%emt 0:01:00]} Nh5 {[%emt 0:06:02]} 9. Rb1 {[%emt 0:01:03]} f5 {[%emt 0:02:14]} 10. Nd5 {[%emt 0:01:10]} Nf6 {[%emt 0:06:03]} 11. Nec3 {[%emt 0:01:50]} Ne7 {[%emt 0:02:36]} 12. b4 {[%emt 0:01:30]} c6 {[%emt 0:05:12]} 13. Nxe7+ {[%emt 0:00:41]} Qxe7 {[%emt 0:00:13]} 14. b5 {[%emt 0:00:43]} Bd7 {[%emt 0:08:13]} 15. bxc6 {[%emt 0:00:38]} Bxc6 {[%emt 0:03:45]} 16. Nd5 {[%emt 0:00:35]} Qd7 {[%emt 0:07:40]} 17. Ba3 {[%emt 0:02:16]} Rab8 {[%emt 0:05:07]} 18. Qd2 {[%emt 0:01:03]} Rfd8 {[%emt 0:06:24]} 19. Rfc1 {[%emt 0:07:29]} Bxd5 {[%emt 0:15:16]} 20. cxd5 {[%emt 0:02:58]} Ne8 {[%emt 0:01:14]} 21. Rb3 {[%emt 0:03:40]} Rdc8 {[%emt 0:03:24]} 22. Rcb1 {[%emt 0:02:56]} b6 {[%emt 0:02:01]} 23. Rc1 {[%emt 0:01:21]} Rxc1+ {[%emt 0:00:28]} 24. Qxc1 {[%emt 0:00:15]} Rc8 {[%emt 0:01:46]} 25. Rc3 {[%emt 0:00:57]} Rxc3 {[%emt 0:02:03]} 26. Qxc3 {[%emt 0:00:05]} Bf8 {[%emt 0:01:18]} 27. Qc4 {[%emt 0:01:20]} Qc7 {[%emt 0:02:13]} 28. Kf1 {[%emt 0:03:05]} Qxc4 {[%emt 0:02:15]} 29. dxc4 {[%emt 0:00:04]} b5 {[%emt 0:02:46]} 30. cxb5 {[%emt 0:03:26]} Nc7 {[%emt 0:00:09]} 31. Bb4 {[%emt 0:00:10]} Nxb5 {[%emt 0:01:34]} 32. Ke2 {[%emt 0:00:16]} e4 {[%emt 0:01:57]} 33. f3 {[%emt 0:00:19]} exf3+ {[%emt 0:00:13]} 34. Bxf3 {[%emt 0:00:09]} Nc7 {[%emt 0:01:54]} 35. Kd3 {[%emt 0:00:22]} Kf7 {[%emt 0:00:17]} 36. Kc4 {[%emt 0:00:21]} Ke7 {[%emt 0:01:07]} 37. Ba5 {[%emt 0:00:46]} Kd7 {[%emt 0:00:57]} 38. Bd1 {[%emt 0:01:07]} Bh6 {[%emt 0:00:56]} 39. Ba4+ {[%emt 0:00:55]} Kc8 {[%emt 0:00:41]} 40. Bb4 {[%emt 0:01:15]} Bxe3 {[%emt 0:02:22]} 41. Bxd6 {[%emt 0:30:22]} Bg1 {[%emt 0:04:39]} 42. h3 {[%emt 0:00:00]} Bf2 {[%emt 0:02:36]} 43. Be5 {[%emt 0:00:00]} Na6 {[%emt 0:03:00]} 44. d6 {[%emt 0:00:00]} Nc5 {[%emt 0:03:06]} 45. Bc6 {[%emt 0:00:00]} Nd7 {[%emt 0:05:42]} 46. Bf4 {[%emt 0:00:00]} Nb6+ {[%emt 0:01:40]} 47. Kd3 {[%emt 0:00:00]} h6 {[%emt 0:01:51]} 48. Bxh6 {[%emt 0:00:00]} Bxg3 {[%emt 0:01:00]} 49. Bf8 {[%emt 0:00:00]} Nd7 {[%emt 0:01:34]} 50. Bg7 {[%emt 0:03:10]} Bxd6 {[%emt 0:01:00]} 51. Bg2 {[%emt 0:03:15]} Kd8 {[%emt 0:02:23]} 52. Bc3 {[%emt 0:01:43]} Ke7 {[%emt 0:01:15]} 53. Bd4 {[%emt 0:03:55]} a6 {[%emt 0:02:08]} 54. Be3 {[%emt 0:03:23]} Ke6 {[%emt 0:01:11]} 55. Bg5 {[%emt 0:04:24]} Bc5 {[%emt 0:01:56]} 56. Ke2 {[%emt 0:05:26]} Ne5 {[%emt 0:00:37]} 57. Bd2 {[%emt 0:03:51]} Nf7 {[%emt 0:00:43]} 58. Bb7 {[%emt 0:00:00]} Nd6 {[%emt 0:00:00]} 59. Bxa6 {[%emt 0:00:00]} Ba3 {[%emt 0:00:00]} 60. Bf4 {[%emt 0:17:03]} Ne4 {[%emt 0:00:00]} 61. h4 {[%emt 0:06:32]} Be7 {[%emt 0:01:35]} 62. Bc4+ {[%emt 0:05:16]} Kd7 {[%emt 0:01:05]} 63. Bf7 {[%emt 0:03:43]} Bxh4 {[%emt 0:01:01]} 64. Bxg6 {[%emt 0:00:19]} Ke6 {[%emt 0:01:03]} 65. a3 {[%emt 0:04:13]} Be7 {[%emt 0:00:18]} 66. Bc1 {[%emt 0:00:32]} Nf6 {[%emt 0:00:44]} 67. a4 {[%emt 0:01:26]} Bb4 {[%emt 0:00:16]} 68. Kd3 {[%emt 0:01:23]} Nd5 {[%emt 0:00:48]} 69. Kc4 {[%emt 0:01:37]} Be1 {[%emt 0:00:18]} 70. Bh5 {[%emt 0:01:58]} Nb6+ {[%emt 0:00:29]} 71. Kb5 {[%emt 0:00:15]} Nxa4 {[%emt 0:00:14]} 72. Kxa4 {[%emt 0:00:07]} Ke5 {[%emt 0:00:10]} 73. Bf3 {[%emt 0:00:18]} Kd4 {[%emt 0:00:51]} 74. Kb5 {[%emt 0:01:31]} Kd3 {[%emt 0:00:27]} 75. Bg5 {[%emt 0:03:19]} Bd2 {[%emt 0:00:14]} 76. Bh4 {[%emt 0:00:29]} Ke3 {[%emt 0:00:32]} 77. Bd1 {[%emt 0:00:29]} f4 {[%emt 0:00:26]} 78. Bg5 {[%emt 0:00:18]} Kd3 {[%emt 0:00:54]} 79. Bf3 {[%emt 0:01:20]} Ke3 {[%emt 0:00:16]} 80. Bd1 {[%emt 0:00:33]} Kd3 {[%emt 0:00:09]} 81. Bf3 {[%emt 0:00:44]} Ke3 {[%emt 0:00:07]} 82. Bg4 {[%emt 0:00:15]} Ke4 {[%emt 0:00:33]} 83. Kc4 {[%emt 0:00:37]} Be3 {[%emt 0:00:12]} 84. Bh3 {[%emt 0:00:38]} Bf2 {[%emt 0:01:20]} 85. Bf1 {[%emt 0:00:35]} Bg3 {[%emt 0:00:44]} 86. Bh3 {[%emt 0:00:22]} Bf2 {[%emt 0:00:13]} 87. Bg2+ {[%emt 0:00:36]} Ke3 {[%emt 0:00:29]} 88. Bf1 {[%emt 0:00:18]} Bg3 {[%emt 0:00:26]} 89. Kc3 {[%emt 0:00:19]} Be1+ {[%emt 0:00:22]} 90. Kc2 {[%emt 0:00:07]} Kf2 {[%emt 0:00:57]} 91. Bd3 {[%emt 0:00:30]} Kg3 {[%emt 0:00:41]} 92. Kd1 {[%emt 0:00:29]} Bf2 {[%emt 0:00:27]} 93. Ke2 {[%emt 0:00:40]} f3+ {[%emt 0:00:34]} 94. Kf1 {[%emt 0:00:50]} Bb6 {[%emt 0:00:11]} 95. Be7 {[%emt 0:00:37]} f2 {[%emt 0:01:04]} 96. Bb5 {[%emt 0:00:21]} Kf3 {[%emt 0:00:29]} 97. Bc6+ {[%emt 0:00:23]} Kf4 {[%emt 0:00:20]} 98. Bd6+ {[%emt 0:00:27]} Kf5 {[%emt 0:00:23]} 99. Ke2 {[%emt 0:00:26]} Kg4 {[%emt 0:00:40]} 100. Bd7+ {[%emt 0:00:42]} Kg5 {[%emt 0:00:12]} 101. Bg3 {[%emt 0:00:35]} Kf6 {[%emt 0:00:16]} 102. Bb5 {[%emt 0:00:35]} Ke6 {[%emt 0:00:30]} 103. Bc4+ {[%emt 0:00:33]} Kf5 {[%emt 0:00:23]} 104. Kf3 {[%emt 0:00:19]} Kf6 {[%emt 0:00:26]} 105. Ke4 {[%emt 0:00:42]} Ba7 {[%emt 0:00:34]} 106. Bh4+ {[%emt 0:00:14]} Kg7 {[%emt 0:00:11]} 107. Kf5 {[%emt 0:00:17]} Bb6 {[%emt 0:00:49]} 108. Bg5 {[%emt 0:00:48]} Ba7 {[%emt 0:00:12]} 109. Bf4 {[%emt 0:00:43]} Bd4 {[%emt 0:00:25]} 110. Ke4 {[%emt 0:00:27]} Ba7 {[%emt 0:00:09]} 111. Be5+ {[%emt 0:00:22]} Kg6 {[%emt 0:00:23]} 112. Bd3 {[%emt 0:00:41]} Kf7 {[%emt 0:00:29]} 113. Kf5 {[%emt 0:00:18]} Bb6 {[%emt 0:00:36]} 114. Bf6 {[%emt 0:00:18]} Bc5 {[%emt 0:01:07]} 115. Bc4+ {[%emt 0:00:10]} Ke8 {[%emt 0:01:06]} 116. Ke6 {[%emt 0:00:31]} Kf8 {[%emt 0:00:16]} 117. Be5 {[%emt 0:01:01]} Ke8 {[%emt 0:01:01]} 118. Bc7 {[%emt 0:00:43]} Kf8 {[%emt 0:00:32]} 119. Kf6 {[%emt 0:00:26]} Bd4+ {[%emt 0:00:23]} 120. Kf5 {[%emt 0:00:37]} Ke7 {[%emt 0:00:27]} 121. Ba5 {[%emt 0:00:29]} Kd7 {[%emt 0:00:53]} 122. Ke4 {[%emt 0:00:27]} Ba7 {[%emt 0:00:31]} 123. Bb5+ {[%emt 0:00:34]} Kd6 {[%emt 0:00:28]} 124. Bb4+ {[%emt 0:00:24]} Bc5 {[%emt 0:00:16]} 125. Bc3 {[%emt 0:00:18]} Ba7 {[%emt 0:00:09]} 126. Be2 {[%emt 0:00:46]} Bb6 {[%emt 0:00:22]} 127. Be5+ {[%emt 0:00:25]} Ke6 {[%emt 0:00:46]} 128. Bc4+ {[%emt 0:00:05]} Ke7 {[%emt 0:00:25]} 129. Kf5 {[%emt 0:00:27]} Ba7 {[%emt 0:00:25]} 130. Bb5 {[%emt 0:00:51]} Be3 {[%emt 0:00:24]} 131. Bb8 {[%emt 0:00:44]} Bd4 {[%emt 0:00:38]} 132. Ke4 {[%emt 0:00:33]} Bb6 {[%emt 0:00:17]} 133. Ke5 {[%emt 0:00:30]} Bc5 {[%emt 0:00:09]} 134. Bc4 {[%emt 0:00:13]} Kd7 {[%emt 0:01:18]} 135. Kd5 {[%emt 0:00:36]} Be3 {[%emt 0:00:47]} 136. Bd6 {[%emt 0:00:18]} Kd8 {[%emt 0:01:07]} 137. Bb5 {[%emt 0:00:55]} Kc8 {[%emt 0:00:39]} 138. Ba6+ {[%emt 0:00:28]} Kd8 {[%emt 0:00:14]} 139. Ke6 {[%emt 0:00:30]} Bd4 {[%emt 0:00:21]} 140. Bf4 {[%emt 0:00:34]} Bc5 {[%emt 0:00:21]} 141. Bg3 {[%emt 0:00:30]} Be3 {[%emt 0:00:14]} 142. Kd6 {[%emt 0:00:30]} Ke8 {[%emt 0:00:20]} 143. Bc4 {[%emt 0:00:22]} Bd4 {[%emt 0:00:47]} 144. Bf4 {[%emt 0:00:36]} Ba7 {[%emt 0:01:01]} 145. Bg5 {[%emt 0:00:25]} Kf8 {[%emt 0:00:29]} 146. Bf6 {[%emt 0:00:38]} Bb6 {[%emt 0:00:22]} 147. Ke6 {[%emt 0:00:30]} Bc5 {[%emt 0:00:21]} 148. Bb5 {[%emt 0:00:29]} Bb6 {[%emt 0:00:50]} 149. Be5 {[%emt 0:00:24]} Ba7 {[%emt 0:00:48] normal} 1/2-1/2

[Event "-chT Youth Countries 2019"]
[Site "Wuerzburg"]
[Date "2019.10.03"]
[Round "3.7"]
[White "Rempe, Mieke"]
[Black "Bardorz, Jana"]
[Result "1-0"]
[ECO "C78"]
[WhiteElo "1530"]
[BlackElo "1929"]
[Annotator "NA"]
[PlyCount "91"]
[EventDate "2019.10.02"]
[EventType "team-tourn"]
[EventRounds "7"]
[EventCountry "GER"]
[SourceTitle "playchess.com"]
[Source "ChessBase"]
[SourceQuality "1"]
[WhiteTeam "Hamburg/Schleswig-Holstein"]
[BlackTeam "Bayern 1"]
[TimeControl "40/5400+30:1800+30"]

1. e4 {[%emt 0:00:00]} e5 {[%emt 0:00:00]} 2. Nf3 {[%emt 0:00:35]} Nc6 {[%emt 0:00:00]} 3. Bb5 {[%emt 0:00:53]} a6 {[%emt 0:00:00]} 4. Ba4 {[%emt 0:01:04]} Nf6 {[%emt 0:00:00]} 5. O-O {[%emt 0:00:45]} b5 {[%emt 0:00:07]} 6. Bb3 {[%emt 0:00:33]} Bc5 {[%emt 0:00:38]} 7. Nxe5 {[%emt 0:03:15]} Nxe5 {[%emt 0:00:02]} 8. d4 {[%emt 0:00:08]} Bxd4 {[%emt 0:04:48]} 9. Qxd4 {[%emt 0:00:56]} d6 {[%emt 0:01:01]} 10. Bg5 {[%emt 0:05:03]} c5 {[%emt 0:16:40]} 11. Bxf6 {[%emt 0:00:35]} gxf6 {[%emt 0:06:18]} 12. Qc3 {[%emt 0:06:04]} c4 {[%emt 0:02:24]} 13. f4 {[%emt 0:01:52]} Ng6 {[%emt 0:11:04]} 14. e5 {[%emt 0:02:14]} O-O {[%emt 0:07:35]} 15. exf6 {[%emt 0:00:52]} Kh8 {[%emt 0:03:59]} 16. Qf3 {[%emt 0:03:04]} Rb8 {[%emt 0:07:02]} 17. Qc3 {[%emt 0:05:23]} Rg8 {[%emt 0:03:00]} 18. Nd2 {[%emt 0:00:26]} Nh4 {[%emt 0:03:23]} 19. g3 {[%emt 0:04:12]} cxb3 {[%emt 0:04:42]} 20. Ne4 {[%emt 0:03:03]} h6 {[%emt 0:04:50]} 21. Qxb3 {[%emt 0:02:28]} Bb7 {[%emt 0:02:46]} 22. Rae1 {[%emt 0:07:05]} d5 {[%emt 0:02:28]} 23. Nc5 {[%emt 0:02:34]} Qb6 {[%emt 0:01:55]} 24. Qe3 {[%emt 0:00:56]} Nf5 {[%emt 0:01:34]} 25. Qf2 {[%emt 0:01:41]} Rbe8 {[%emt 0:02:18]} 26. Rxe8 {[%emt 0:01:09]} Rxe8 {[%emt 0:00:07]} 27. g4 {[%emt 0:00:22]} Nd6 {[%emt 0:01:54]} 28. b4 {[%emt 0:00:56]} Rg8 {[%emt 0:04:16]} 29. Qh4 {[%emt 0:00:43]} Kh7 {[%emt 0:03:08]} 30. Re1 {[%emt 0:00:47]} Ne4 {[%emt 0:01:23]} 31. Kf1 {[%emt 0:02:05]} Nxc5 {[%emt 0:01:35]} 32. Re7 {[%emt 0:01:34]} Rg6 {[%emt 0:02:46]} 33. Rxf7+ {[%emt 0:01:23]} Kg8 {[%emt 0:00:30]} 34. bxc5 {[%emt 0:00:32]} Qe6 {[%emt 0:01:46]} 35. Rxb7 {[%emt 0:04:17]} Rxf6 {[%emt 0:00:24]} 36. Rb8+ {[%emt 0:03:19]} Kg7 {[%emt 0:00:19]} 37. Qg3 {[%emt 0:01:05]} Qe4 {[%emt 0:00:37]} 38. Rb7+ {[%emt 0:04:17]} Kh8 {[%emt 0:00:15]} 39. f5 {[%emt 0:05:12]} Qc4+ {[%emt 0:00:13]} 40. Ke1 {[%emt 0:00:28]} Qb4+ {[%emt 0:00:38]} 41. Kd1 {[%emt 0:33:49]} Qb1+ {[%emt 0:03:47]} 42. Kd2 {[%emt 0:00:00]} Qb4+ {[%emt 0:00:28]} 43. Qc3 {[%emt 0:00:00]} Qf4+ {[%emt 0:00:49]} 44. Qe3 {[%emt 0:00:00]} Qxh2+ {[%emt 0:05:34]} 45. Kd3 {[%emt 0:00:00]} Rf8 {[%emt 0:03:56]} 46. Qd4+ {[%emt 0:00:00] normal} 1-0

[Event "-chT Youth Countries 2019"]
[Site "Wuerzburg"]
[Date "2019.10.03"]
[Round "3.8"]
[White "Wiesner, Paula"]
[Black "Roncea, Andrea-Alexandra"]
[Result "1-0"]
[ECO "C03"]
[WhiteElo "1958"]
[BlackElo "1590"]
[Annotator "NA"]
[PlyCount "65"]
[EventDate "2019.10.02"]
[EventType "team-tourn"]
[EventRounds "7"]
[EventCountry "GER"]
[SourceTitle "playchess.com"]
[Source "ChessBase"]
[SourceQuality "1"]
[WhiteTeam "Berlin"]
[BlackTeam "Niedersachsen"]
[TimeControl "40/5400+30:1800+30"]

1. d4 {[%emt 0:00:00]} e6 {[%emt 0:00:00]} 2. e4 {[%emt 0:00:00]} d5 {[%emt 0:00:14]} 3. Nd2 {[%emt 0:00:00]} dxe4 {[%emt 0:00:45]} 4. Nxe4 {[%emt 0:00:00]} Nf6 {[%emt 0:00:35]} 5. Bg5 {[%emt 0:00:36]} Be7 {[%emt 0:00:28]} 6. Nxf6+ {[%emt 0:01:09]} Bxf6 {[%emt 0:00:19]} 7. Bxf6 {[%emt 0:00:05]} Qxf6 {[%emt 0:00:09]} 8. Nf3 {[%emt 0:00:04]} Nd7 {[%emt 0:00:48]} 9. Bd3 {[%emt 0:01:04]} O-O {[%emt 0:00:34]} 10. O-O {[%emt 0:00:47]} b6 {[%emt 0:01:13]} 11. Be4 {[%emt 0:03:36]} Rb8 {[%emt 0:00:50]} 12. Bc6 {[%emt 0:05:08]} Qe7 {[%emt 0:03:39]} 13. Qe2 {[%emt 0:07:00]} Qd6 {[%emt 0:06:52]} 14. Qc4 {[%emt 0:08:09]} Bb7 {[%emt 0:05:06]} 15. Bxb7 {[%emt 0:00:19]} Rxb7 {[%emt 0:00:09]} 16. Rad1 {[%emt 0:03:28]} c5 {[%emt 0:04:31]} 17. d5 {[%emt 0:08:06]} exd5 {[%emt 0:01:44]} 18. Rxd5 {[%emt 0:04:32]} Qc7 {[%emt 0:02:18]} 19. Re1 {[%emt 0:05:25]} Nf6 {[%emt 0:03:16]} 20. Rde5 {[%emt 0:00:13]} Qd8 {[%emt 0:02:01]} 21. Qe2 {[%emt 0:02:26]} h6 {[%emt 0:02:18]} 22. h3 {[%emt 0:02:27]} Nd5 {[%emt 0:03:14]} 23. c4 {[%emt 0:04:44]} Nf4 {[%emt 0:01:33]} 24. Qe4 {[%emt 0:01:06]} Nd3 {[%emt 0:04:12]} 25. Rd5 {[%emt 0:07:48]} Rd7 {[%emt 0:01:45]} 26. Qxd3 {[%emt 0:00:04]} Rxd5 {[%emt 0:00:27]} 27. Qxd5 {[%emt 0:00:22]} Qxd5 {[%emt 0:01:25]} 28. cxd5 {[%emt 0:00:06]} Rd8 {[%emt 0:00:16]} 29. Rd1 {[%emt 0:00:08]} Kf8 {[%emt 0:00:21]} 30. d6 {[%emt 0:00:33]} Ke8 {[%emt 0:00:17]} 31. Ne5 {[%emt 0:00:39]} f6 {[%emt 0:00:21]} 32. d7+ {[%emt 0:00:06]} Kf8 {[%emt 0:00:15]} 33. Nc6 {[%emt 0:00:05] normal} 1-0

[Event "-chT Youth Countries 2019"]
[Site "Wuerzburg"]
[Date "2019.10.03"]
[Round "3.8"]
[White "Braeutigam, Katerina"]
[Black "Pohle, Saskia"]
[Result "1-0"]
[ECO "C97"]
[WhiteElo "1630"]
[BlackElo "1716"]
[Annotator "NA"]
[PlyCount "63"]
[EventDate "2019.10.02"]
[EventType "team-tourn"]
[EventRounds "7"]
[EventCountry "GER"]
[SourceTitle "playchess.com"]
[Source "ChessBase"]
[SourceQuality "1"]
[WhiteTeam "Schleswig-Holstein"]
[BlackTeam "Sachsen"]
[TimeControl "40/5400+30:1800+30"]

1. e4 {[%emt 0:00:00]} e5 {[%emt 0:00:00]} 2. Nf3 {[%emt 0:00:00]} Nc6 {[%emt 0:00:00]} 3. Bb5 {[%emt 0:00:00]} a6 {[%emt 0:00:00]} 4. Ba4 {[%emt 0:00:05]} Nf6 {[%emt 0:00:00]} 5. O-O {[%emt 0:00:28]} Be7 {[%emt 0:00:31]} 6. Re1 {[%emt 0:00:25]} b5 {[%emt 0:00:43]} 7. Bb3 {[%emt 0:00:15]} d6 {[%emt 0:00:15]} 8. c3 {[%emt 0:00:33]} Na5 {[%emt 0:01:47]} 9. Bc2 {[%emt 0:00:20]} c5 {[%emt 0:00:09]} 10. d4 {[%emt 0:01:45]} Qc7 {[%emt 0:00:20]} 11. h3 {[%emt 0:00:47]} O-O {[%emt 0:00:09]} 12. Nbd2 {[%emt 0:00:32]} Re8 {[%emt 0:01:08]} 13. Nf1 {[%emt 0:00:43]} Bd7 {[%emt 0:03:51]} 14. Ng3 {[%emt 0:03:54]} g6 {[%emt 0:00:14]} 15. Bg5 {[%emt 0:02:10]} Nc4 {[%emt 0:08:48]} 16. b3 {[%emt 0:02:42]} Nb6 {[%emt 0:00:06]} 17. Qd2 {[%emt 0:21:56]} Kh8 {[%emt 0:12:19]} 18. Rad1 {[%emt 0:07:49]} Ng8 {[%emt 0:04:18]} 19. Bxe7 {[%emt 0:15:41]} Rxe7 {[%emt 0:02:19]} 20. dxe5 {[%emt 0:02:53]} dxe5 {[%emt 0:00:28]} 21. Qd6 {[%emt 0:02:00]} Rc8 {[%emt 0:06:46]} 22. Nf1 {[%emt 0:02:54]} Re6 {[%emt 0:03:06]} 23. Qxc7 {[%emt 0:04:31]} Rxc7 {[%emt 0:00:06]} 24. Ng5 {[%emt 0:00:47]} Re7 {[%emt 0:03:08]} 25. Rd6 {[%emt 0:02:18]} Bc6 {[%emt 0:09:13]} 26. Red1 {[%emt 0:06:57]} Kg7 {[%emt 0:04:40]} 27. Ne3 Red7 {[%emt 0:06:07]} 28. Ng4 {[%emt 0:07:07]} Re7 {[%emt 0:05:11]} 29. Kf1 {[%emt 0:04:14]} Nc8 {[%emt 0:07:24]} 30. Rd8 {[%emt 0:02:29]} f6 {[%emt 0:02:01]} 31. Nf3 {[%emt 0:03:10]} Red7 {[%emt 0:02:57]} 32. Rxg8+ {[%emt 0:00:50] normal} 1-0

[Event "-chT Youth Countries 2019"]
[Site "Wuerzburg"]
[Date "2019.10.03"]
[Round "3.8"]
[White "Fischer, Darja"]
[Black "Reich, Elisabeth"]
[Result "1-0"]
[ECO "E90"]
[WhiteElo "1604"]
[BlackElo "1199"]
[Annotator "NA"]
[PlyCount "84"]
[EventDate "2019.10.02"]
[EventType "team-tourn"]
[EventRounds "7"]
[EventCountry "GER"]
[SourceTitle "playchess.com"]
[Source "ChessBase"]
[SourceQuality "1"]
[WhiteTeam "Baden 1"]
[BlackTeam "Bayern 2"]
[TimeControl "40/5400+30:1800+30"]

1. d4 {[%emt 0:00:00]} Nf6 {[%emt 0:00:00]} 2. c4 {[%emt 0:00:03]} d6 {[%emt 0:00:00]} 3. Nc3 {[%emt 0:01:05]} g6 {[%emt 0:00:03]} 4. e4 {[%emt 0:02:47]} Bg7 {[%emt 0:00:57]} 5. Nf3 {[%emt 0:01:46]} O-O {[%emt 0:00:17]} 6. Bg5 {[%emt 0:01:44]} b6 {[%emt 0:00:36]} 7. Qd2 {[%emt 0:04:25]} Re8 {[%emt 0:01:45]} 8. O-O-O {[%emt 0:02:22]} Bb7 {[%emt 0:00:39]} 9. Bd3 {[%emt 0:03:34]} Nc6 {[%emt 0:01:18]} 10. Bh6 {[%emt 0:01:50]} Bh8 {[%emt 0:00:22]} 11. h4 {[%emt 0:02:53]} Ng4 {[%emt 0:01:44]} 12. Be3 {[%emt 0:13:50]} Nxe3 {[%emt 0:03:58]} 13. Qxe3 {[%emt 0:02:07]} h5 {[%emt 0:00:53]} 14. Rdg1 {[%emt 0:05:14]} Bg7 {[%emt 0:00:48]} 15. g4 {[%emt 0:01:12]} hxg4 {[%emt 0:00:08]} 16. Rxg4 {[%emt 0:00:41]} Qd7 {[%emt 0:00:37]} 17. Rg3 {[%emt 0:01:32]} e5 {[%emt 0:02:07]} 18. d5 {[%emt 0:05:42]} Nd4 {[%emt 0:00:15]} 19. h5 {[%emt 0:01:12]} a5 {[%emt 0:04:34]} 20. hxg6 {[%emt 0:02:22]} fxg6 {[%emt 0:00:13]} 21. Rxg6 {[%emt 0:00:58]} Qf7 {[%emt 0:00:30]} 22. Rg3 {[%emt 0:03:22]} a4 {[%emt 0:00:34]} 23. Rhg1 {[%emt 0:03:04]} Re7 {[%emt 0:00:24]} 24. Rxg7+ {[%emt 0:03:35]} Qxg7 {[%emt 0:01:07]} 25. Rxg7+ {[%emt 0:00:03]} Rxg7 {[%emt 0:00:13]} 26. Nxd4 {[%emt 0:00:36]} exd4 {[%emt 0:00:10]} 27. Qxd4 {[%emt 0:00:15]} a3 {[%emt 0:00:09]} 28. b3 {[%emt 0:00:40]} Rg1+ {[%emt 0:00:12]} 29. Kc2 {[%emt 0:00:49]} Rg2 {[%emt 0:00:35]} 30. Nd1 {[%emt 0:01:11]} Rf8 {[%emt 0:00:33]} 31. e5 {[%emt 0:00:57]} dxe5 {[%emt 0:00:15]} 32. Qxe5 {[%emt 0:00:23]} Rf7 {[%emt 0:00:44]} 33. Qe6 {[%emt 0:03:36]} Kg7 {[%emt 0:00:19]} 34. Be4 {[%emt 0:01:14]} Rg1 {[%emt 0:00:52]} 35. Qe5+ {[%emt 0:01:24]} Kg8 {[%emt 0:01:10]} 36. f4 {[%emt 0:01:28]} Re1 {[%emt 0:00:30]} 37. Bh7+ {[%emt 0:00:20]} Rxh7 {[%emt 0:00:27]} 38. Qxe1 {[%emt 0:00:13]} Rh2+ 39. Kb1 {[%emt 0:01:53]} Rh7 {[%emt 0:00:37]} 40. Qe6+ {[%emt 0:00:27]} Rf7 {[%emt 0:00:17]} 41. Ne3 {[%emt 0:31:13]} Kf8 {[%emt 0:30:46]} 42. Nf5 {[%emt 0:00:25]} Rh7 {normal} 1-0

[Event "-chT Youth Countries 2019"]
[Site "Wuerzburg"]
[Date "2019.10.03"]
[Round "3.8"]
[White "Prinzen, Siri Marleen"]
[Black "Ruhmke, Rebecca"]
[Result "1-0"]
[ECO "B01"]
[WhiteElo "1520"]
[BlackElo "1404"]
[Annotator "NA"]
[PlyCount "107"]
[EventDate "2019.10.02"]
[EventType "team-tourn"]
[EventRounds "7"]
[EventCountry "GER"]
[SourceTitle "playchess.com"]
[Source "ChessBase"]
[SourceQuality "1"]
[WhiteTeam "Bayern 1"]
[BlackTeam "Hamburg/Schleswig-Holstein"]
[TimeControl "40/5400+30:1800+30"]

1. e4 {[%emt 0:00:00]} d5 {[%emt 0:00:00]} 2. exd5 {[%emt 0:00:00]} Nf6 {[%emt 0:00:00]} 3. d4 {[%emt 0:00:00]} Nxd5 {[%emt 0:00:00]} 4. Nf3 {[%emt 0:00:22]} Bg4 {[%emt 0:00:05]} 5. c4 {[%emt 0:02:52]} Nb6 {[%emt 0:00:19]} 6. Be2 {[%emt 0:04:29]} e6 {[%emt 0:07:34]} 7. O-O {[%emt 0:04:47]} Be7 {[%emt 0:04:59]} 8. Be3 {[%emt 0:02:12]} Nc6 {[%emt 0:01:56]} 9. b3 {[%emt 0:00:33]} Qd7 {[%emt 0:06:51]} 10. h3 {[%emt 0:05:01]} Bh5 {[%emt 0:00:59]} 11. Qd2 {[%emt 0:06:04]} O-O {[%emt 0:05:40]} 12. Ne5 {[%emt 0:06:12]} Nxe5 {[%emt 0:01:24]} 13. Bxh5 {[%emt 0:01:08]} Nc6 {[%emt 0:01:10]} 14. Bf3 {[%emt 0:01:08]} Bf6 {[%emt 0:04:36]} 15. Bxc6 {[%emt 0:03:07]} Qxc6 {[%emt 0:03:35]} 16. Nc3 {[%emt 0:01:45]} Rad8 {[%emt 0:07:18]} 17. Ne2 {[%emt 0:01:47]} Nc8 {[%emt 0:03:08]} 18. Rad1 {[%emt 0:02:34]} Ne7 {[%emt 0:01:23]} 19. Qd3 {[%emt 0:06:11]} Rd6 {[%emt 0:06:39]} 20. Rd2 {[%emt 0:04:20]} Qd7 {[%emt 0:02:53]} 21. Qe4 {[%emt 0:03:23]} Rb8 {[%emt 0:05:07]} 22. Rfd1 {[%emt 0:02:14]} Ra6 {[%emt 0:03:46]} 23. Nf4 {[%emt 0:04:48]} c6 {[%emt 0:06:14]} 24. Nh5 {[%emt 0:02:05]} Ng6 {[%emt 0:02:46]} 25. Nxf6+ {[%emt 0:01:24]} gxf6 {[%emt 0:00:06]} 26. Qf3 {[%emt 0:01:08]} Kf8 {[%emt 0:01:19]} 27. Qxf6 {[%emt 0:01:08]} Qe7 {[%emt 0:00:09]} 28. Bh6+ {[%emt 0:01:51]} Ke8 {[%emt 0:00:13]} 29. Qf3 {[%emt 0:02:13]} Qh4 {[%emt 0:02:42]} 30. Qe3 {[%emt 0:01:42]} Ra5 {[%emt 0:02:54]} 31. d5 {[%emt 0:02:54]} Qe7 {[%emt 0:02:51]} 32. Bg5 {[%emt 0:01:44]} f6 {[%emt 0:00:31]} 33. d6 {[%emt 0:00:34]} Qf7 {[%emt 0:04:04]} 34. d7+ {[%emt 0:00:56]} Kd8 {[%emt 0:00:24]} 35. Qg3 {[%emt 0:03:57]} Ne5 {[%emt 0:04:02]} 36. Bxf6+ {[%emt 0:05:34]} Qxf6 {[%emt 0:00:18]} 37. Qg8+ {[%emt 0:00:25]} Kc7 {[%emt 0:01:53]} 38. Qxb8+ {[%emt 0:00:32]} Kxb8 {[%emt 0:00:32]} 39. d8=Q+ {[%emt 0:00:09]} Qxd8 {[%emt 0:00:08]} 40. Rxd8+ {[%emt 0:00:05]} Kc7 {[%emt 0:00:17]} 41. f4 {[%emt 0:31:00]} Ng6 {[%emt 0:30:34]} 42. R1d7+ {[%emt 0:00:31]} Kb6 {[%emt 0:00:17]} 43. Rb8 {[%emt 0:00:30]} Rxa2 {[%emt 0:00:39]} 44. Rbxb7+ {[%emt 0:01:03]} Kc5 {[%emt 0:00:17]} 45. Rxa7 {[%emt 0:00:14]} Rb2 {[%emt 0:00:46]} 46. Rf7 {[%emt 0:04:02]} Rxb3 {[%emt 0:00:54]} 47. f5 {[%emt 0:01:27]} exf5 {[%emt 0:01:05]} 48. Rxf5+ {[%emt 0:00:08]} Kxc4 {[%emt 0:00:11]} 49. Rxh7 {[%emt 0:01:34]} Kd4 {[%emt 0:01:58]} 50. Rf6 {[%emt 0:00:49]} Ne5 {[%emt 0:00:27]} 51. Rh4+ {[%emt 0:00:39]} Kd5 {[%emt 0:05:34]} 52. Rh5 {[%emt 0:01:27]} Kd4 {[%emt 0:00:58]} 53. Rd6+ {[%emt 0:02:02]} Ke4 {[%emt 0:00:28]} 54. Re6 {[%emt 0:00:17] normal} 1-0